lending/lending_fUSD_20240824
["ID","MTS","AMOUNT","RATE_DAILY","PERIOD"]
[335819519,1724507458455,-500.0,0.00010999,2]
[335819520,1724507458465,-582.2,0.00010999,2]
[335819521,1724507458475,-500.0,0.00010999,2]
[335819522,1724507458484,-500.0,0.00010999,2]
[335819523,1724507458494,-500.0,0.00010999,2]
[335819524,1724507458506,-500.0,0.00010999,2]
[335819525,1724507458515,-500.0,0.00010999,2]
[335819526,1724507458524,-500.0,0.00010999,2]
[335819527,1724507458535,-500.0,0.00010999,2]
[335819528,1724507458545,-500.0,0.00010999,2]
[335819529,1724507458555,-500.0,0.00010999,2]
[335819530,1724507458565,-500.0,0.00010999,2]
[335819531,1724507458575,-500.0,0.00010999,2]
[335819532,1724507458585,-151.0,0.00010999,2]
[335819533,1724507458594,-500.0,0.00010999,2]
[335819534,1724507458604,-151.0,0.00010999,2]
[335819535,1724507458616,-151.0,0.00010999,2]
[335819536,1724507458626,-500.0,0.00010999,2]
[335819537,1724507458635,-274.146835,0.00010999,2]
[335819538,1724507458645,-500.0,0.00010999,2]
[335819539,1724507458655,-512.18810512,0.00010999,2]
[335819540,1724507458665,-500.0,0.00010999,2]
[335819541,1724507458674,-500.0,0.00010999,2]
[335819542,1724507458684,-500.0,0.00010999,2]
[335819543,1724507458695,-500.0,0.00010999,2]
[335819544,1724507458704,-500.0,0.00010999,2]
[335819545,1724507458715,-500.0,0.00010999,2]
[335819546,1724507458726,-500.0,0.00010999,2]
[335819547,1724507458742,-435.76,0.00010999,2]
[335819548,1724507458751,-500.0,0.00010999,2]
[335819549,1724507458760,-500.0,0.00010999,2]
[335819550,1724507458769,-500.0,0.00010999,2]
[335819551,1724507458778,-500.0,0.00010999,2]
[335819552,1724507458787,-500.0,0.00010999,2]
[335819553,1724507458796,-500.0,0.00010999,2]
[335819554,1724507458806,-219.5,0.00010999,2]
[335819555,1724507458815,-325.0,0.00010999,2]
[335819556,1724507458827,-500.0,0.00010999,2]
[335819557,1724507458837,-500.0,0.00010999,2]
[335819558,1724507458846,-500.0,0.00010999,2]
[335819559,1724507458855,-388.15,0.00010999,2]
[335819560,1724507458864,-500.0,0.00010999,2]
[335819561,1724507458873,-500.0,0.00010999,2]
[335819562,1724507458882,-500.0,0.00010999,2]
[335819563,1724507458891,-500.0,0.00010999,2]
[335819564,1724507458901,-500.0,0.00010999,2]
[335819565,1724507458911,-500.0,0.00010999,2]
[335819566,1724507458920,-500.0,0.00010999,2]
[335819567,1724507458930,-500.0,0.00010999,2]
[335819568,1724507458939,-500.0,0.00010999,2]
[335819569,1724507458950,-225.76426357,0.00010999,2]
[335819570,1724507458959,-151.0,0.00010999,2]
[335819571,1724507458968,-151.0,0.00010999,2]
[335819572,1724507458980,-151.0,0.00010999,2]
[335819573,1724507458989,-151.0,0.00010999,2]
[335819574,1724507458998,-151.0,0.00010999,2]
[335819575,1724507459007,-151.0,0.00010999,2]
[335819576,1724507459017,-269.405509,0.00010999,2]
[335819577,1724507459026,-539.61,0.00010999,2]
[335819578,1724507459035,-1555.94,0.00010999,2]
[335819579,1724507459044,-539.61,0.00010999,2]
[335819580,1724507459053,-1555.94,0.00010999,2]
[335819581,1724507459062,-539.61,0.00010999,2]
[335819582,1724507459071,-1555.94,0.00010999,2]
[335819583,1724507459080,-539.61,0.00010999,2]
[335819584,1724507459089,-1555.94,0.00010999,2]
[335819585,1724507459098,-539.61,0.00010999,2]
[335819586,1724507459107,-1555.94,0.00010999,2]
[335819587,1724507459116,-539.61,0.00010999,2]
[335819588,1724507459125,-1555.94,0.00010999,2]
[335819589,1724507459134,-539.61,0.00010999,2]
[335819590,1724507459143,-1555.94,0.00010999,2]
[335819591,1724507459152,-539.61,0.00010999,2]
[335819592,1724507459161,-1555.94,0.00010999,2]
[335819593,1724507459170,-539.61,0.00010999,2]
[335819594,1724507459180,-1555.94,0.00010999,2]
[335819595,1724507459188,-539.61,0.00010999,2]
[335819596,1724507459198,-1555.94,0.00010999,2]
[335819597,1724507459207,-539.61,0.00010999,2]
[335819598,1724507459215,-539.61,0.00010999,2]
[335819599,1724507459225,-1555.94,0.00010999,2]
[335819600,1724507459234,-539.61,0.00010999,2]
[335819601,1724507459243,-1555.94,0.00010999,2]
[335819602,1724507459252,-539.61,0.00010999,2]
[335819603,1724507459261,-1555.94,0.00010999,2]
[335819604,1724507459269,-151.0,0.00010999,2]
[335819605,1724507459278,-1555.94,0.00010999,2]
[335819606,1724507459288,-151.0,0.00010999,2]
[335819607,1724507459297,-1555.94,0.00010999,2]
[335819608,1724507459306,-539.61,0.00010999,2]
[335819609,1724507459315,-1555.94,0.00010999,2]
[335819610,1724507459324,-539.61,0.00010999,2]
[335819611,1724507459333,-152.053308,0.00010999,2]
[335819612,1724507459342,-1555.94,0.00010999,2]
[335819613,1724507459351,-539.61,0.00010999,2]
[335819614,1724507459361,-1555.94,0.00010999,2]
[335819615,1724507459370,-539.61,0.00010999,2]
[335819616,1724507459379,-539.61,0.00010999,2]
[335819617,1724507459388,-1555.94,0.00010999,2]
[335819618,1724507459397,-539.61,0.00010999,2]
[335819619,1724507459406,-1555.98,0.00010999,2]
[335819620,1724507459415,-539.61,0.00010999,2]
[335819621,1724507459424,-1821.314492,0.00010999,2]
[335819622,1724507459432,-1821.314492,0.00010999,2]
[335819623,1724507459443,-1821.314492,0.00010999,2]
[335819624,1724507459451,-1821.314492,0.00010999,2]
[335819625,1724507459461,-1821.314492,0.00010999,2]
[335819626,1724507459469,-298617.06448684,0.00011,2]
[335819627,1724507459482,-3767558.69313737,0.00011,4]
[335819628,1724507459789,-1821.314492,0.00010998,2]
[335819629,1724507459798,-1821.314492,0.00010998,2]
[335819630,1724507459808,-1821.314492,0.00010999,2]
[335819631,1724507459819,-1821.314492,0.00010999,2]
[335819632,1724507459830,-1821.314492,0.00010999,2]
[335819633,1724507459839,-1821.314492,0.00010999,2]
[335819634,1724507459849,-53446.51936909,0.00011,4]
[335819635,1724507459860,-3452.04671336,0.00011,4]
[335819636,1724507459876,-312.19502056,0.00010999,2]
[335819637,1724507459891,-1509.11947144,0.00010999,2]
[335819638,1724507459903,-9778.42275668,0.00011,4]
[335819639,1724507459914,-1079.19241916,0.00011,4]
[335819640,1724507658405,414.96,9.417e-05,2]
[335819641,1724507810103,831.96063221,0.00027,120]
[335819650,1724508120085,10000.0,0.00027,120]
[335819652,1724508145244,10000.0,0.00027,120]
[335819653,1724508160389,10000.0,0.00027,120]
[335819655,1724508190650,10000.0,0.00027,120]
[335819657,1724508247240,1151.0,0.00027,120]
[335819658,1724508285955,10000.0,0.00027,120]
[335819660,1724508297424,412.66,9.082e-05,2]
[335819661,1724508313578,16960.0,0.00027,120]
[335819663,1724508332269,10000.0,0.00027,120]
[335819664,1724508338167,2273.51558127,0.00025,90]
[335819667,1724508385319,10000.0,0.00027,120]
[335819669,1724508398355,10000.0,0.00027,120]
[335819670,1724508405024,10000.0,0.00027,120]
[335819671,1724508414672,10000.0,0.00027,120]
[335819672,1724508422303,10000.0,0.00027,120]
[335819673,1724508427782,10000.0,0.00027,120]
[335819714,1724508603822,3285.15428223,0.00010009,2]
[335819715,1724508630008,268.05998873,0.00027,120]
[335819720,1724508631847,-712.0,0.00010819,2]
[335819721,1724508631856,-54.71121484,0.00010822,2]
[335819722,1724508632022,-110.16878516,0.00010822,2]
[335819723,1724508632032,-160.52,0.00010827,2]
[335819724,1724508632041,-210.78173784,0.00010864,2]
[335819725,1724508632210,-184.51826216,0.00010864,2]
[335819726,1724508632220,-206.02448722,0.00010888,2]
[335819727,1724508632230,-402.58361384,0.00010888,2]
[335819728,1724508632239,-162.24871037,0.0001089,2]
[335819729,1724508632250,-900.0,0.0001089,2]
[335819730,1724508632270,-1437.62195802,0.0001089,2]
[335819741,1724508637969,-500.12933161,0.0001089,2]
[335819742,1724508637979,-44.25237497,0.0001089,2]
[335819743,1724508638223,-110.74762503,0.0001089,2]
[335819744,1724508638232,-298.88080064,0.0001089,2]
[335819746,1724508638242,-209.56108597,0.00010898,2]
[335819748,1724508638253,-90.43891403,0.00010898,2]
[335819750,1724508638263,-1029.84,0.000109,2]
[335819751,1724508638272,-1262.77537943,0.000109,2]
[335819769,1724508640304,-438.40565794,0.000109,2]
[335819770,1724508640316,-776.63879726,0.000109,2]
[335819771,1724508640326,-499.99,0.000109,2]
[335819772,1724508640335,-471.494441,0.000109,2]
[335819773,1724508640345,-159.52,0.00010959,2]
[335819774,1724508640354,-144.7443483,0.00010996,2]
[335819775,1724508640365,-414.39499999,0.00010996,2]
[335819776,1724508640376,-706.07383781,0.00010996,2]
[335819777,1724508640478,-1580.273493,0.00010996,2]
[335819779,1724508640487,-500.0,0.00010997,2]
[335819781,1724508640496,-500.0,0.00010998,2]
[335819783,1724508640505,-282.11466018,0.00010998,2]
[335819785,1724508640514,-166.02,0.00010998,2]
[335819787,1724508640523,-150.0,0.00010998,2]
[335819789,1724508640532,-502.14,0.00010999,2]
[335819791,1724508640541,-502.14,0.00010999,2]
[335819792,1724508640550,-502.14,0.00010999,2]
[335819794,1724508640559,-502.14,0.00010999,2]
[335819796,1724508640568,-37.89314692,0.00010999,2]
[335819922,1724508643331,-400.30481951,0.00010999,2]
[335819924,1724508643343,-63.94203357,0.00010999,2]
[335819925,1724508643351,-436.05796643,0.00010999,2]
[335819928,1724508643364,-66.08203357,0.00010999,2]
[335819930,1724508643374,-347.03440173,0.00010999,2]
[335820163,1724508645836,-155.0,0.00010888,2]
[335820165,1724508645845,-2092.9574,0.00010996,2]
[335820168,1724508645856,-505.37470669,0.00010996,2]
[335820170,1724508645868,-350.80549032,0.00010996,2]
[335820178,1724508645948,-868.06276799,0.00010996,2]
[335820180,1724508645959,-155.10559827,0.00010999,2]
[335820182,1724508645969,-502.14,0.00010999,2]
[335820184,1724508645979,-502.14,0.00010999,2]
[335820186,1724508645989,-502.14,0.00010999,2]
[335820188,1724508646000,-502.14,0.00010999,2]
[335820190,1724508646010,-502.14,0.00010999,2]
[335820192,1724508646020,-502.14,0.00010999,2]
[335820194,1724508646030,-502.14,0.00010999,2]
[335820196,1724508646040,-502.14,0.00010999,2]
[335820198,1724508646051,-502.14,0.00010999,2]
[335820200,1724508646061,-502.14,0.00010999,2]
[335820202,1724508646070,-502.14,0.00010999,2]
[335820204,1724508646080,-502.14,0.00010999,2]
[335820206,1724508646089,-502.14,0.00010999,2]
[335820208,1724508646099,-502.14,0.00010999,2]
[335820210,1724508646109,-502.14,0.00010999,2]
[335820212,1724508646119,-502.14,0.00010999,2]
[335820214,1724508646127,-502.24995661,0.00010999,2]
[335820216,1724508646137,-500.0,0.00010999,2]
[335820218,1724508646146,-500.0,0.00010999,2]
[335820220,1724508646156,-396.59724717,0.00010999,2]
[335820221,1724508646199,-103.40275283,0.00010999,2]
[335820222,1724508646209,-500.0,0.00010999,2]
[335820223,1724508646218,-78.51290207,0.00010999,2]
[335820224,1724508646231,-421.48709793,0.00010999,2]
[335820225,1724508646240,-78.51290207,0.00010999,2]
[335820226,1724508646252,-349.46606398,0.00010999,2]
[335820227,1724508646264,-72.02103395,0.00010999,2]
[335820228,1724508646274,-500.0,0.00010999,2]
[335820230,1724508646283,-500.0,0.00010999,2]
[335820231,1724508646292,-329.21557039,0.00010999,2]
[335820233,1724508741757,1050.0,0.0001,2]
[335820234,1724508937940,500.0,0.00027,120]
[335820236,1724508948064,500.0,0.00027,120]
[335820237,1724508960852,500.0,0.00027,120]
[335820238,1724508996055,446.07,8.304e-05,2]
[335820242,1724509172517,264.66383924,0.00010009,2]
[335820249,1724509417676,773.1,9.903e-05,2]
[335820250,1724509424045,4049.29,9.987e-05,2]
[335820252,1724509435168,197.65,9.918e-05,2]
[335820253,1724509462026,288.0,9.911e-05,2]
[335820255,1724509519335,439.65,8.219e-05,2]
[335820258,1724509539675,3016.98,9.934e-05,2]
[335820271,1724509668057,164.88,9.904e-05,2]
[335820291,1724509757030,210.68796629,0.00010009,2]
[335820310,1724509813878,155.71405625,0.00010009,2]
[335820313,1724509821470,955.84194083,0.00010009,2]
[335820330,1724509832139,-174.6,0.00010066,2]
[335820331,1724509832149,-155.50558752,0.00010097,2]
[335820332,1724509832158,-412.59987064,0.000101,2]
[335820333,1724509832167,-170.43,0.00010107,2]
[335820334,1724509832176,-159.12,0.00010405,2]
[335820335,1724509832185,-9278.86602702,0.00010471,2]
[335820336,1724509832194,-439.65,0.00010475,2]
[335820337,1724509832203,-712.0,0.00010588,2]
[335820338,1724509832211,-587.42,0.00010588,2]
[335820339,1724509832220,-150.0,0.00010712,2]
[335820340,1724509832230,-16486.56,0.00010713,2]
[335820341,1724509832239,-1365.33813785,0.00010713,2]
[335820342,1724509832248,-461.1654,0.000108,2]
[335820343,1724509832257,-155.94399844,0.000108,2]
[335820344,1724509832266,-531.53,0.000108,2]
[335820345,1724509832278,-150.0,0.000108,2]
[335820346,1724509832287,-150.0,0.000108,2]
[335820347,1724509832296,-150.0,0.000108,2]
[335820348,1724509832306,-179.99,0.00010804,2]
[335820349,1724509832315,-834.39508745,0.00010848,2]
[335820350,1724509832325,-499.99,0.00010861,2]
[335820351,1724509832334,-711.82892756,0.00010862,2]
[335820352,1724509832343,-298.66525992,0.00010862,2]
[335820353,1724509832353,-2161.25458,0.0001089,2]
[335820354,1724509832362,-401.92563255,0.0001089,2]
[335820355,1724509832371,-206.02448722,0.0001089,2]
[335820356,1724509832380,-330.46251231,0.0001089,2]
[335820357,1724509832390,-419.38668131,0.0001089,2]
[335820358,1724509832401,-2139.003,0.00010899,2]
[335820359,1724509832412,-23386.5069,0.00010899,2]
[335820360,1724509832422,-4462.89290298,0.00010899,2]
[335820361,1724509832431,-304.56425799,0.00010899,2]
[335820362,1724509832442,-4462.89290289,0.00010899,2]
[335820363,1724509832452,-4462.89290289,0.00010899,2]
[335820364,1724509832463,-4462.89290289,0.00010899,2]
[335820365,1724509832472,-4462.89290289,0.00010899,2]
[335820366,1724509832482,-4462.89290289,0.000109,2]
[335820367,1724509832495,-4462.89290289,0.000109,2]
[335820368,1724509832504,-37685.0998,0.000109,2]
[335820369,1724509832514,-1451.1123,0.000109,2]
[335820370,1724509832528,-468.1942,0.000109,2]
[335820371,1724509832542,-4462.89290289,0.000109,2]
[335820372,1724509832552,-4462.89290289,0.000109,2]
[335820373,1724509832561,-152.80631539,0.000109,2]
[335820374,1724509832574,-4462.89290289,0.000109,2]
[335820375,1724509832585,-229.55880013,0.000109,2]
[335820376,1724509832594,-591.01663497,0.000109,2]
[335820377,1724509832603,-507.6679,0.00010945,2]
[335820378,1724509832613,-163.13,0.00010959,2]
[335820379,1724509832623,-2000.0,0.00010959,2]
[335820380,1724509832632,-259.17,0.00010959,2]
[335820381,1724509832641,-250.0,0.00010959,2]
[335820382,1724509832650,-1500.0,0.00010959,2]
[335820383,1724509832660,-333.31,0.00010959,2]
[335820385,1724509832669,-150.0,0.00010959,2]
[335820387,1724509832678,-155.0,0.00010979,2]
[335820388,1724509832687,-515.81013922,0.00010995,2]
[335820390,1724509832696,-500.0,0.00010998,2]
[335820391,1724509832706,-500.0,0.00010998,2]
[335820392,1724509832716,-500.0,0.00010998,2]
[335820393,1724509832725,-500.0,0.00010998,2]
[335820394,1724509832734,-500.0,0.00010998,2]
[335820395,1724509832744,-500.0,0.00010998,2]
[335820396,1724509832753,-500.0,0.00010998,2]
[335820397,1724509832762,-500.0,0.00010998,2]
[335820398,1724509832777,-500.0,0.00010998,2]
[335820399,1724509832786,-500.0,0.00010998,2]
[335820400,1724509832795,-500.0,0.00010998,2]
[335820401,1724509832804,-500.0,0.00010998,2]
[335820402,1724509832814,-450.47540402,0.00010998,2]
[335820404,1724509832823,-500.0,0.00010998,2]
[335820405,1724509832832,-718.0,0.00010998,2]
[335820406,1724509832842,-727.0,0.00010998,2]
[335820407,1724509832852,-500.0,0.00010998,2]
[335820408,1724509832861,-1568.06376944,0.00010998,2]
[335820409,1724509832870,-500.0,0.00010998,2]
[335820410,1724509832880,-162.12610338,0.00010998,2]
[335820411,1724509832890,-1038.99,0.00010998,2]
[335820412,1724509832899,-500.0,0.00010998,2]
[335820413,1724509832908,-546.7512804,0.00010998,2]
[335820414,1724509832918,-500.0,0.00010998,2]
[335820415,1724509832927,-500.0,0.00010998,2]
[335820416,1724509832937,-151.04,0.00010998,2]
[335820417,1724509832947,-500.0,0.00010998,2]
[335820418,1724509832956,-500.0,0.00010998,2]
[335820419,1724509832966,-500.0,0.00010998,2]
[335820420,1724509832976,-500.0,0.00010998,2]
[335820421,1724509833140,-500.0,0.00010998,2]
[335820422,1724509833150,-564.61,0.00010998,2]
[335820423,1724509833159,-723.59,0.00010998,2]
[335820424,1724509833168,-500.0,0.00010998,2]
[335820425,1724509833177,-500.0,0.00010998,2]
[335820426,1724509833187,-585.36,0.00010998,2]
[335820427,1724509833196,-500.0,0.00010998,2]
[335820428,1724509833205,-500.0,0.00010998,2]
[335820429,1724509833214,-719.35,0.00010998,2]
[335820430,1724509833222,-500.0,0.00010998,2]
[335820431,1724509833231,-500.0,0.00010999,2]
[335820432,1724509833241,-239.055034,0.00010999,2]
[335820433,1724509833250,-500.0,0.00010999,2]
[335820434,1724509833259,-500.0,0.00010999,2]
[335820435,1724509833268,-500.0,0.00010999,2]
[335820436,1724509833279,-215.64091098,0.00010999,2]
[335820437,1724509833289,-500.0,0.00010999,2]
[335820438,1724509833298,-500.0,0.00010999,2]
[335820439,1724509833307,-289.49097335,0.00010999,2]
[335820440,1724509833316,-500.0,0.00010999,2]
[335820441,1724509833325,-339.85359939,0.00010999,2]
[335820442,1724509833334,-500.0,0.00010999,2]
[335820443,1724509833343,-151.45415204,0.00010999,2]
[335820444,1724509833352,-500.0,0.00010999,2]
[335820445,1724509833361,-500.0,0.00010999,2]
[335820446,1724509833371,-500.0,0.00010999,2]
[335820447,1724509833380,-500.0,0.00010999,2]
[335820448,1724509833390,-574.63986633,0.00010999,2]
[335820449,1724509833399,-500.0,0.00010999,2]
[335820450,1724509833409,-500.0,0.00010999,2]
[335820451,1724509833418,-500.0,0.00010999,2]
[335820452,1724509833428,-500.0,0.00010999,2]
[335820453,1724509833437,-500.0,0.00010999,2]
[335820454,1724509833446,-500.0,0.00010999,2]
[335820455,1724509833456,-500.0,0.00010999,2]
[335820456,1724509833466,-500.0,0.00010999,2]
[335820457,1724509833476,-500.0,0.00010999,2]
[335820458,1724509833486,-500.0,0.00010999,2]
[335820459,1724509833499,-500.0,0.00010999,2]
[335820460,1724509833509,-500.0,0.00010999,2]
[335820461,1724509833518,-500.0,0.00010999,2]
[335820462,1724509833531,-500.0,0.00010999,2]
[335820463,1724509833540,-236.27546814,0.00010999,2]
[335820464,1724509833549,-500.0,0.00010999,2]
[335820465,1724509833558,-500.0,0.00010999,2]
[335820466,1724509833569,-527.7180553,0.00010999,2]
[335820467,1724509833579,-500.0,0.00010999,2]
[335820468,1724509833588,-500.0,0.00010999,2]
[335820469,1724509833598,-500.0,0.00010999,2]
[335820470,1724509833607,-500.0,0.00010999,2]
[335820471,1724509833617,-500.0,0.00010999,2]
[335820472,1724509833626,-500.0,0.00010999,2]
[335820473,1724509833636,-500.0,0.00010999,2]
[335820474,1724509833645,-500.0,0.00010999,2]
[335820475,1724509833655,-500.0,0.00010999,2]
[335820476,1724509833665,-500.0,0.00010999,2]
[335820477,1724509833675,-500.0,0.00010999,2]
[335820478,1724509833684,-500.0,0.00010999,2]
[335820479,1724509833694,-500.0,0.00010999,2]
[335820480,1724509833703,-576.76958944,0.00010999,2]
[335820481,1724509833713,-500.0,0.00010999,2]
[335820482,1724509833722,-500.0,0.00010999,2]
[335820483,1724509833732,-500.0,0.00010999,2]
[335820484,1724509833742,-500.0,0.00010999,2]
[335820485,1724509833751,-500.0,0.00010999,2]
[335820486,1724509833761,-500.0,0.00010999,2]
[335820487,1724509833773,-500.0,0.00010999,2]
[335820488,1724509833783,-500.0,0.00010999,2]
[335820489,1724509833792,-464.19,0.00010999,2]
[335820490,1724509833801,-500.0,0.00010999,2]
[335820491,1724509833811,-500.0,0.00010999,2]
[335820492,1724509833820,-500.0,0.00010999,2]
[335820493,1724509833829,-354.4,0.00010999,2]
[335820494,1724509833839,-500.0,0.00010999,2]
[335820495,1724509833848,-500.0,0.00010999,2]
[335820496,1724509833857,-500.0,0.00010999,2]
[335820497,1724509833866,-500.0,0.00010999,2]
[335820498,1724509833875,-500.0,0.00010999,2]
[335820499,1724509833885,-500.0,0.00010999,2]
[335820500,1724509833894,-500.0,0.00010999,2]
[335820501,1724509833903,-500.0,0.00010999,2]
[335820502,1724509833912,-500.0,0.00010999,2]
[335820503,1724509833921,-500.0,0.00010999,2]
[335820504,1724509833932,-500.0,0.00010999,2]
[335820505,1724509833941,-500.0,0.00010999,2]
[335820506,1724509833950,-500.0,0.00010999,2]
[335820507,1724509833959,-500.0,0.00010999,2]
[335820508,1724509833968,-500.0,0.00010999,2]
[335820509,1724509833978,-500.0,0.00010999,2]
[335820510,1724509833987,-500.0,0.00010999,2]
[335820511,1724509833996,-500.0,0.00010999,2]
[335820512,1724509834005,-500.0,0.00010999,2]
[335820513,1724509834014,-500.0,0.00010999,2]
[335820514,1724509834025,-644.38065958,0.00010999,2]
[335820515,1724509834034,-500.0,0.00010999,2]
[335820516,1724509834043,-500.0,0.00010999,2]
[335820517,1724509834052,-506.76270824,0.00010999,2]
[335820518,1724509834061,-500.0,0.00010999,2]
[335820519,1724509834070,-500.0,0.00010999,2]
[335820520,1724509834079,-500.0,0.00010999,2]
[335820521,1724509834091,-500.0,0.00010999,2]
[335820522,1724509834100,-500.0,0.00010999,2]
[335820523,1724509834110,-500.0,0.00010999,2]
[335820524,1724509834119,-500.0,0.00010999,2]
[335820525,1724509834129,-500.0,0.00010999,2]
[335820526,1724509834138,-500.0,0.00010999,2]
[335820527,1724509834147,-500.0,0.00010999,2]
[335820528,1724509834156,-500.0,0.00010999,2]
[335820529,1724509834165,-500.0,0.00010999,2]
[335820530,1724509834174,-500.0,0.00010999,2]
[335820531,1724509834183,-500.0,0.00010999,2]
[335820532,1724509834192,-500.0,0.00010999,2]
[335820533,1724509834201,-500.0,0.00010999,2]
[335820534,1724509834210,-563.2,0.00010999,2]
[335820535,1724509834220,-500.0,0.00010999,2]
[335820536,1724509834229,-500.0,0.00010999,2]
[335820537,1724509834238,-500.0,0.00010999,2]
[335820538,1724509834247,-500.0,0.00010999,2]
[335820539,1724509834257,-414.98836658,0.00010999,2]
[335820540,1724509834266,-500.0,0.00010999,2]
[335820541,1724509834276,-500.0,0.00010999,2]
[335820542,1724509834285,-500.0,0.00010999,2]
[335820543,1724509834294,-500.0,0.00010999,2]
[335820544,1724509834303,-500.0,0.00010999,2]
[335820545,1724509834312,-500.0,0.00010999,2]
[335820546,1724509834321,-500.0,0.00010999,2]
[335820547,1724509834331,-500.0,0.00010999,2]
[335820548,1724509834340,-500.0,0.00010999,2]
[335820549,1724509834350,-500.0,0.00010999,2]
[335820550,1724509834359,-500.0,0.00010999,2]
[335820551,1724509834368,-500.0,0.00010999,2]
[335820552,1724509834378,-500.0,0.00010999,2]
[335820553,1724509834387,-500.0,0.00010999,2]
[335820554,1724509834397,-500.0,0.00010999,2]
[335820555,1724509834406,-500.0,0.00010999,2]
[335820556,1724509834416,-500.0,0.00010999,2]
[335820557,1724509834425,-500.0,0.00010999,2]
[335820558,1724509834435,-500.0,0.00010999,2]
[335820559,1724509834445,-500.0,0.00010999,2]
[335820560,1724509834454,-338.15,0.00010999,2]
[335820561,1724509834464,-500.0,0.00010999,2]
[335820562,1724509834473,-395.88804481,0.00010999,2]
[335820563,1724509834484,-500.0,0.00010999,2]
[335820564,1724509834495,-500.0,0.00010999,2]
[335820565,1724509834505,-500.0,0.00010999,2]
[335820566,1724509834514,-500.0,0.00010999,2]
[335820567,1724509834525,-500.0,0.00010999,2]
[335820568,1724509834535,-500.0,0.00010999,2]
[335820569,1724509834545,-500.0,0.00010999,2]
[335820570,1724509834555,-500.0,0.00010999,2]
[335820571,1724509834564,-619.70576573,0.00010999,2]
[335820572,1724509834575,-500.0,0.00010999,2]
[335820573,1724509834584,-500.0,0.00010999,2]
[335820574,1724509834594,-500.0,0.00010999,2]
[335820575,1724509834603,-500.0,0.00010999,2]
[335820576,1724509834612,-500.0,0.00010999,2]
[335820577,1724509834621,-500.0,0.00010999,2]
[335820578,1724509834631,-500.0,0.00010999,2]
[335820579,1724509834640,-500.0,0.00010999,2]
[335820580,1724509834650,-500.0,0.00010999,2]
[335820581,1724509834659,-500.0,0.00010999,2]
[335820582,1724509834669,-500.0,0.00010999,2]
[335820583,1724509834678,-500.0,0.00010999,2]
[335820584,1724509834687,-500.0,0.00010999,2]
[335820585,1724509834697,-500.0,0.00010999,2]
[335820586,1724509834706,-500.0,0.00010999,2]
[335820587,1724509834715,-500.0,0.00010999,2]
[335820588,1724509834724,-500.0,0.00010999,2]
[335820589,1724509834734,-500.0,0.00010999,2]
[335820590,1724509834743,-353.01,0.00010999,2]
[335820591,1724509834752,-502.3,0.00010999,2]
[335820592,1724509834761,-500.0,0.00010999,2]
[335820593,1724509834770,-500.0,0.00010999,2]
[335820594,1724509834781,-500.0,0.00010999,2]
[335820595,1724509834790,-500.0,0.00010999,2]
[335820596,1724509834799,-500.0,0.00010999,2]
[335820597,1724509834809,-500.0,0.00010999,2]